bitfinex/quotes_SOLUSD_20220118
["timestamp","ask_amount","ask_price","bid_price","bid_amount"]
[1642483279138,2.5923437,139.09,139.07,0.53471177]
[1642483279338,8.37203187,139.09,139.07,0.53471177]
[1642483279838,8.37203187,139.09,139.07,0.25]
[1642483280949,2.5923437,139.09,139.07,0.25]
[1642483281342,5.62454367,139.09,139.07,0.25]
[1642483281541,8.37203187,139.09,139.07,0.25]
[1642483283045,8.37203187,139.09,139.07,11.0336]
[1642483284245,8.37203187,139.09,139.07,10.7836]
[1642483284246,5.62454367,139.09,139.07,10.7836]
[1642483284446,5.62454367,139.09,139.06,12.46067228]
[1642483284447,2.5923437,139.09,139.06,6.46067228]
[1642483284747,2.5923437,139.09,139.06,3.58467228]
[1642483285350,2.7474882,139.08,139.06,3.58467228]
[1642483286347,2.7474882,139.08,139.05,111.7]
[1642483287954,2.7474882,139.08,139.06,0.28471177]
[1642483288754,2.7474882,139.08,139.05,114.576]
[1642483288954,2.7474882,139.08,139.05,111.7]
[1642483289551,3.03219997,139.07,139.05,111.7]
[1642483289776,3.03219997,139.07,139.06,0.28471177]
[1642483289975,3.03219997,139.07,139.05,111.7]
[1642483291175,3.03219997,139.07,139.05,111.98471177]
[1642483291376,2.5923437,139.09,139.05,111.98471177]
[1642483292577,2.5923437,139.09,139.05,111.7]
[1642483292776,2.5923437,139.09,139.04,2.876]
[1642483302889,2.5923437,139.09,139.04,13.6619]
[1642483306395,5.4683437,139.09,139.04,10.7859]
[1642483306694,2.5923437,139.09,139.05,3.126]
[1642483306895,2.5923437,139.09,139.06,10.7844]
[1642483307493,2.5923437,139.09,139.07,0.28471177]
[1642483307895,3.03219997,139.08,139.06,10.7844]
[1642483308094,5.77968817,139.08,139.06,10.7844]
[1642483309193,5.77968817,139.08,139.06,11.06911177]
[1642483309395,2.5923437,139.09,139.06,11.06911177]
[1642483309794,3.03219997,139.08,139.06,11.06911177]
[1642483309996,5.77968817,139.08,139.06,11.06911177]
[1642483310196,5.77968817,139.08,139.06,10.7844]
[1642483313302,3.03219997,139.08,139.07,13.9082]
[1642483313502,2.5923437,139.09,139.07,13.9082]
[1642483313700,2.5923437,139.09,139.07,21.11096649]
[1642483314502,2.5923437,139.09,139.08,11.06661177]
[1642483314902,2.5923437,139.09,139.08,17.31661177]
[1642483317636,2.5923437,139.09,139.08,11.06661177]
[1642483317836,8.37203187,139.09,139.08,10.7819]
[1642483319243,2.5923437,139.09,139.08,11.06661177]
[1642483320441,2.5923437,139.09,139.08,0.28471177]
[1642483321040,5.62454367,139.09,139.08,0.28471177]
[1642483321846,8.37203187,139.09,139.06,33.4524]
[1642483322041,8.37203187,139.09,139.06,36.3284]
[1642483322642,8.37203187,139.09,139.07,0.53471177]
[1642483322842,8.37203187,139.09,139.06,36.3284]
[1642483323042,8.37203187,139.09,139.06,33.4524]
[1642483323242,8.37203187,139.09,139.06,22.668]
[1642483323643,8.37203187,139.09,139.07,0.25]
[1642483324543,8.37203187,139.09,139.06,25.544]
[1642483324743,8.37203187,139.09,139.06,22.668]
[1642483326646,8.37203187,139.09,139.05,21.0152]
[1642483328248,8.37203187,139.09,139.06,0.25]
[1642483328448,8.37203187,139.09,139.07,2.876]
[1642483328851,8.37203187,139.09,139.08,0.25]
[1642483329849,8.37203187,139.09,139.07,0.25]
[1642483331352,8.37203187,139.09,139.08,0.28471177]
[1642483331651,8.37203187,139.09,139.07,0.25]
[1642483333251,8.37203187,139.09,139.06,2.875]
[1642483333454,8.37203187,139.09,139.05,2.876]
[1642483333653,2.876,139.08,139.05,0.25]
[1642483334753,2.876,139.08,139.04,0.25]
[1642483334952,5.4683437,139.09,139.04,0.25]
[1642483339067,5.4683437,139.09,139.03,13.6626]
[1642483339864,5.4683437,139.09,139.03,2.876]
[1642483340265,5.4683437,139.09,139.04,0.25]
[1642483340666,5.4683437,139.09,139.03,2.876]
[1642483340865,0.25,139.08,139.03,2.876]
[1642483341064,2.876,139.07,139.03,2.876]
[1642483341365,43.85414619,139.06,139.03,2.876]
[1642483341563,2.876,139.05,139.03,2.376]
[1642483341764,5.77968817,139.04,139.03,2.376]
[1642483342991,5.77968817,139.04,139.01,2.876]
[1642483346692,5.77968817,139.04,139.0,2.876]
[1642483346893,5.77968817,139.04,139.0,3.126]
[1642483347293,5.77968817,139.04,139.0,13.9149]
[1642483348196,5.77968817,139.04,139.0,13.6649]
[1642483348393,5.77968817,139.04,139.01,0.25]
[1642483348594,5.77968817,139.04,139.0,13.6649]
[1642483348793,5.77968817,139.04,139.0,10.7889]
[1642483349093,5.77968817,139.04,138.99,114.576]
[1642483349294,2.876,139.03,138.99,111.7]
[1642483349694,27.1834,139.05,138.99,111.7]
[1642483350594,27.1834,139.05,138.99,122.4898]
[1642483350798,27.1834,139.05,139.0,0.25]
[1642483351195,27.1834,139.05,138.99,122.4898]
[1642483351394,33.1834,139.05,138.99,122.4898]
[1642483352497,27.1834,139.05,138.99,122.4898]
[1642483352694,0.25,139.04,138.99,122.4898]
[1642483352895,2.876,139.03,138.99,122.4898]
[1642483353094,2.5923437,139.01,138.99,122.4898]
[1642483353298,2.5923437,139.01,139.0,0.28471177]
[1642483354597,2.5923437,139.01,139.0,2.33190145]
[1642483355397,2.5923437,139.01,139.0,2.58190145]
[1642483356497,2.5923437,139.01,139.0,2.33190145]
[1642483356699,8.37203187,139.01,139.0,2.04718968]
[1642483357904,8.37203187,139.01,138.99,122.4898]
[1642483358304,8.37203187,139.01,139.0,0.25]
[1642483359705,8.37203187,139.01,139.0,3.126]
[1642483361113,5.62454367,139.01,139.0,3.126]
[1642483361512,2.5923437,139.01,139.0,3.126]
[1642483362612,2.5923437,139.01,139.0,3.41071177]
[1642483363914,2.5923437,139.01,139.0,5.45962504]
[1642483364712,2.5923437,139.01,139.0,2.58362504]
[1642483372853,8.37203187,139.01,139.0,2.29891327]
[1642483373854,5.62454367,139.01,139.0,2.58362504]
[1642483374055,2.5923437,139.01,139.0,2.58362504]
[1642483376257,5.3398319,139.01,139.0,2.29891327]
[1642483376457,2.5923437,139.01,139.0,2.58362504]
[1642483377659,5.62454367,139.01,139.0,2.29891327]
[1642483380663,8.37203187,139.01,139.0,2.29891327]
[1642483384464,2.5923437,139.01,139.0,2.58362504]
[1642483392870,8.37203187,139.01,139.0,2.29891327]
[1642483397004,8.37203187,139.01,139.0,0.25]
[1642483399104,8.37203187,139.01,139.0,2.29887198]
[1642483403708,8.37203187,139.01,139.0,2.04887198]
[1642483408111,2.5923437,139.01,139.0,2.33358375]
[1642483408515,2.5923437,139.01,139.0,2.58358375]
[1642483409716,2.5923437,139.01,139.0,2.33358375]
[1642483409913,2.5923437,139.01,139.0,2.04887198]
[1642483410317,2.5923437,139.01,139.0,2.33358375]
[1642483411314,2.5923437,139.01,139.0,2.58358375]
[1642483412317,2.5923437,139.01,139.0,2.33358375]
[1642483413218,14.37203187,139.01,139.0,2.04887198]
[1642483413819,14.37203187,139.01,138.99,2.04887198]
[1642483415721,8.37203187,139.01,138.98,2.04887198]
[1642483415922,8.37203187,139.01,138.98,2.29887198]
[1642483418426,8.37203187,139.01,138.98,2.04887198]
[1642483418829,2.876,139.0,138.98,2.04887198]
[1642483419126,2.876,139.0,138.97,2.04887198]
[1642483421429,2.876,139.0,138.97,7.198e-05]
[1642483421630,2.876,139.0,138.93,3.58467228]
[1642483421631,0.25,138.99,138.93,3.58467228]
[1642483421830,2.878,138.98,138.93,3.58467228]
[1642483422029,40.04512135,138.97,138.93,3.58467228]
[1642483422229,2.878,138.96,138.93,3.58467228]
[1642483422430,2.878,138.96,138.9,3.58467228]
[1642483422629,0.25,138.95,138.9,3.58467228]
[1642483422831,2.879,138.94,138.9,3.58467228]
[1642483423432,0.25,138.93,138.9,3.58467228]
[1642483423631,5.77968817,138.92,138.9,3.58467228]
[1642483423831,5.77968817,138.92,138.88,111.7]
[1642483433238,5.77968817,138.92,138.88,122.4981]
[1642483435741,8.65868817,138.92,138.88,122.4981]
[1642483436172,2.5923437,138.9,138.88,122.4981]
[1642483437973,2.5923437,138.9,138.88,122.78281177]
[1642483441871,8.37203187,138.9,138.88,122.78281177]
[1642483442270,8.37203187,138.9,138.88,122.4981]
[1642483445977,2.5923437,138.9,138.89,0.28471177]
[1642483447878,2.5923437,138.9,138.88,10.7981]
[1642483449478,2.5923437,138.9,138.89,0.28471177]
[1642483449681,8.37203187,138.9,138.88,10.7981]
[1642483455186,8.37203187,138.9,138.88,11.08281177]
[1642483455388,2.5923437,138.9,138.88,11.08281177]
[1642483456586,2.5923437,138.9,138.86,38.1212]
[1642483456887,2.5923437,138.9,138.87,0.25]
[1642483457085,2.5923437,138.9,138.88,0.28471177]
[1642483457987,2.5923437,138.9,138.87,0.25]
[1642483459193,2.5923437,138.9,138.88,0.28471177]
[1642483461691,3.03219997,138.89,138.88,11.08301177]
[1642483461892,2.5923437,138.9,138.88,11.08301177]
[1642483464293,2.5923437,138.9,138.88,17.08301177]
[1642483464494,2.5923437,138.9,138.88,11.08301177]
[1642483466295,2.5923437,138.9,138.88,17.08301177]
[1642483466497,2.5923437,138.9,138.88,11.08301177]
[1642483468597,2.5923437,138.9,138.88,17.08301177]
[1642483468999,2.5923437,138.9,138.89,2.879]
[1642483469199,2.5923437,138.9,138.88,17.08301177]
[1642483469598,2.5923437,138.9,138.89,0.25]
[1642483469823,2.5923437,138.9,138.89,11.047]
[1642483470423,2.5923437,138.9,138.89,16.797]
[1642483470625,2.5923437,138.9,138.89,17.047]
[1642483471726,2.5923437,138.9,138.89,23.364]
[1642483471927,2.879,138.94,138.89,33.854]
[1642483472126,2.879,138.94,138.9,0.25]
[1642483472329,2.879,138.94,138.91,10.794]
[1642483472528,2.879,138.94,138.92,0.28471177]
[1642483472726,2.879,138.94,138.92,0.53471177]
[1642483472928,2.879,138.94,138.92,1.74653518]
[1642483473327,2.879,138.94,138.92,7.74653518]
[1642483473529,2.879,138.94,138.93,10.7938]
[1642483473930,2.879,138.94,138.93,17.0438]
[1642483474129,2.879,138.94,138.93,11.0438]
[1642483474730,2.879,138.94,138.93,17.0438]
[1642483474929,2.879,138.94,138.93,11.0438]
[1642483475932,2.879,138.94,138.93,10.7938]
[1642483476133,2.879,138.98,138.93,10.7938]
[1642483476330,2.879,138.98,138.94,0.25]
[1642483476734,2.879,138.98,138.93,10.7938]
[1642483477132,0.25,138.97,138.93,10.7938]
[1642483477331,2.878,138.96,138.93,10.7938]
[1642483477729,2.878,138.98,138.93,10.7938]
[1642483480336,2.878,138.98,138.94,0.25]
[1642483480537,2.878,138.98,138.94,11.0433]
[1642483480835,2.878,138.98,138.94,17.0433]
[1642483483339,27.4477,138.99,138.94,17.0433]
[1642483485139,27.4477,138.99,138.94,19.9213]
[1642483486843,27.4477,138.99,138.94,21.14633018]
[1642483487746,2.878,138.99,138.94,93.16633018]
[1642483487946,2.878,138.99,138.94,103.65633018]
[1642483488145,1.59239773,139.0,138.94,103.65633018]
[1642483488545,24.9063,139.03,138.94,103.65633018]
[1642483489246,46.74283253,139.05,138.94,103.65633018]
[1642483489446,46.74283253,139.05,138.96,72.02]
[1642483489647,46.74283253,139.05,138.98,10.7896]
[1642483489849,0.25,139.04,138.99,0.25]
[1642483490048,2.876,139.03,138.99,0.25]
[1642483490648,2.876,139.03,138.99,11.0396]
[1642483490847,2.876,139.03,138.99,17.0396]
[1642483491048,2.876,139.03,138.99,18.26463018]
[1642483491449,3.126,139.04,138.99,18.26463018]
[1642483492150,2.876,139.04,138.99,18.26463018]
[1642483492551,27.655,139.05,138.99,18.26463018]
[1642483493150,2.876,139.05,138.99,40.78273018]
[1642483493954,28.43722498,139.06,139.0,13.6645]
[1642483494353,28.43722498,139.06,139.01,0.25]
[1642483495974,28.43722498,139.06,139.0,8.876]
[1642483496172,28.43722498,139.06,139.0,2.876]
[1642483496573,0.25,139.05,139.0,2.876]
[1642483496774,2.876,139.04,138.99,22.5181]
[1642483497776,2.876,139.04,138.98,21.0201]
[1642483497977,2.876,139.04,138.99,0.25]
[1642483499378,0.25,139.03,138.97,0.25]
[1642483499578,2.876,139.02,138.97,0.25]
[1642483499778,49.48012448,139.01,138.97,0.25]
[1642483504285,55.48012448,139.01,138.97,0.25]
[1642483506792,49.48012448,139.01,138.97,0.25]
[1642483507293,55.48012448,139.01,138.97,0.25]
[1642483508295,49.48012448,139.01,138.97,0.25]
[1642483509199,49.48012448,139.01,138.97,11.0414]
[1642483511999,2.876,139.02,138.97,11.0414]
[1642483512201,2.876,139.03,138.98,2.876]
[1642483512400,2.876,139.03,138.97,33.7808]
[1642483513101,46.55166182,139.02,138.97,33.7808]
[1642483516401,46.55166182,139.02,138.98,2.876]
[1642483516601,46.55166182,139.02,138.98,13.6665]
[1642483516803,46.55166182,139.02,138.99,0.25]
[1642483518005,24.4544,139.04,138.99,0.25]
[1642483518203,24.4544,139.04,138.99,11.0399]
[1642483519404,2.876,139.05,138.99,11.0399]
[1642483519606,2.876,139.05,139.01,10.7879]
[1642483519804,4.31572498,139.06,139.01,10.7879]
[1642483520205,41.48227456,139.05,139.01,10.7879]
[1642483522236,41.48227456,139.05,139.02,0.25]
[1642483522408,41.48227456,139.05,139.03,0.28471177]
[1642483522607,5.77968817,139.04,139.02,0.25]
[1642483523610,5.77968817,139.04,139.01,10.7879]
[1642483524209,5.77968817,139.04,139.02,0.28471177]
[1642483524509,5.77968817,139.04,139.02,0.53471177]
[1642483525011,2.7474882,139.04,139.02,0.53471177]
[1642483525310,2.876,139.03,139.02,0.28471177]
[1642483525509,2.876,139.04,139.02,0.28471177]
[1642483525711,5.77968817,139.03,139.01,10.7879]
[1642483526814,5.77968817,139.03,138.99,35.0927]
[1642483527012,2.876,139.02,138.99,41.0927]
[1642483528414,2.876,139.02,139.0,0.28471177]
[1642483528615,8.65568817,139.03,139.0,0.28471177]
[1642483534626,8.65568817,139.03,138.98,10.7907]
[1642483536728,8.65568817,139.03,138.97,10.7914]
[1642483536927,8.65568817,139.03,138.97,11.0414]
[1642483537354,8.65568817,139.03,138.97,17.0414]
[1642483537556,8.65568817,139.03,138.97,11.0414]
[1642483537756,8.65568817,139.03,138.97,17.0414]
[1642483538157,8.65568817,139.03,138.97,11.0414]
[1642483538559,8.65568817,139.03,138.97,17.0414]
[1642483538957,8.65568817,139.03,138.97,11.0414]
[1642483539159,5.77968817,139.03,138.97,17.0414]
[1642483539358,5.77968817,139.03,138.97,11.0414]
[1642483539763,5.77968817,139.03,138.97,17.0414]
[1642483539959,5.77968817,139.03,138.97,11.0414]
[1642483540361,5.77968817,139.03,138.98,2.876]
[1642483540563,5.77968817,139.03,138.98,13.6663]
[1642483540766,5.77968817,139.03,138.99,0.25]
[1642483541164,5.77968817,139.03,138.98,10.7903]
[1642483544666,5.77968817,139.03,138.99,0.25]
[1642483548969,28.90696856,139.04,138.99,0.25]
[1642483559404,28.90696856,139.04,138.99,11.0399]
[1642483559705,28.90696856,139.04,138.99,10.7899]
[1642483561811,4.92546856,139.04,139.01,10.7883]
[1642483562009,4.92546856,139.04,139.02,0.28471177]
[1642483562207,5.77968817,139.03,139.02,0.53471177]
[1642483562409,2.7474882,139.03,139.02,0.53471177]
[1642483562610,4.92546856,139.04,139.02,0.53471177]
[1642483563209,2.876,139.04,139.02,0.53471177]
[1642483563613,2.876,139.04,139.02,14.19811177]
[1642483563811,2.876,139.04,139.02,11.07211177]
[1642483565215,3.48919354,139.06,139.02,11.07211177]
[1642483566016,40.21293393,139.06,139.02,11.07211177]
[1642483566815,40.21293393,139.06,139.02,0.28471177]
[1642483567016,40.21293393,139.06,139.0,10.7884]
[1642483567216,40.21293393,139.06,139.01,0.25]
[1642483568517,40.21293393,139.06,139.01,10.7884]
[1642483568916,40.21293393,139.06,139.02,0.25]
[1642483570720,40.21293393,139.06,139.02,11.0375]
[1642483572521,3.48919354,139.06,139.02,11.0375]
[1642483572738,2.04946856,139.06,139.02,18.8505]
[1642483572925,2.04946856,139.06,139.02,35.0805]
[1642483574426,2.04946856,139.09,139.02,27.2675]
[1642483574626,2.876,139.08,139.02,27.2675]
[1642483575430,4.92546856,139.08,139.02,27.2675]
[1642483575629,2.04946856,139.08,139.02,27.2675]
[1642483576837,2.04946856,139.08,139.02,30.1435]
[1642483577133,2.04946856,139.08,139.02,30.4035]
[1642483577733,2.04946856,139.08,139.02,31.65494195]
[1642483577932,2.04946856,139.08,139.03,72.02]
[1642483578132,2.04946856,139.08,139.05,82.8031]
[1642483578336,2.04946856,139.08,139.06,0.53471177]
[1642483578735,2.04946856,139.1,139.06,0.53471177]
[1642483579135,2.04946856,139.1,139.07,10.7826]
[1642483579334,2.04946856,139.1,139.07,16.7826]
[1642483579738,2.04946856,139.1,139.08,0.28471177]
[1642483581537,2.04946856,139.1,139.08,11.06731177]
[1642483581738,2.04946856,139.1,139.08,17.06731177]
[1642483583668,2.04946856,139.1,139.09,11.0321]
[1642483583868,2.04946856,139.1,139.09,17.0321]
[1642483584872,1.49569941,139.11,139.09,17.0321]
[1642483584873,3.54516797,139.11,139.09,17.0321]
[1642483586070,3.54516797,139.11,139.1,11.06601177]
[1642483586270,3.54516797,139.11,139.1,17.06601177]
[1642483596687,3.54516797,139.11,139.1,0.28471177]
[1642483596888,9.32485614,139.11,139.06,32.3893]
[1642483597087,40.92083666,139.1,139.06,23.5143]
[1642483597493,40.92083666,139.1,139.04,2.875]
[1642483597689,40.92083666,139.1,139.04,8.875]
[1642483597888,42.97030522,139.1,139.04,8.875]
[1642483598290,42.97030522,139.1,139.04,32.4828]
[1642483598688,42.97030522,139.1,139.05,10.7846]
[1642483598893,42.97030522,139.1,139.05,16.7846]
[1642483599691,2.04946856,139.09,139.05,16.7846]
[1642483604923,2.04946856,139.09,139.06,0.25]
[1642483605125,5.77968817,139.08,139.05,16.7846]
[1642483605423,5.77968817,139.08,139.05,10.7846]
[1642483605823,5.77968817,139.08,139.04,26.4828]
[1642483606024,8.65568817,139.08,139.04,23.6078]
[1642483607225,7.82915673,139.08,139.04,23.6078]
[1642483608130,7.82915673,139.08,139.04,34.3935]
[1642483608527,7.82915673,139.08,139.04,40.3935]
[1642483608930,5.77968817,139.08,139.04,40.3935]
[1642483609730,7.82915673,139.08,139.04,40.3935]
[1642483610934,5.77968817,139.08,139.04,40.3935]
[1642483612265,8.65568817,139.08,139.04,40.3935]
[1642483612437,8.65568817,139.08,139.04,34.3935]
[1642483613237,8.65568817,139.08,139.04,10.7857]
[1642483613537,10.70515673,139.08,139.04,10.7857]
[1642483613739,7.82915673,139.08,139.04,10.7857]
[1642483614938,7.82915673,139.08,139.03,10.7867]
[1642483615140,7.82915673,139.08,139.03,11.0367]
[1642483615338,7.82915673,139.08,139.03,17.0367]
[1642483619645,5.77968817,139.08,139.03,17.0367]
[1642483620645,7.82915673,139.08,139.03,17.0367]
[1642483623051,5.77968817,139.08,139.03,17.0367]
[1642483623856,7.82915673,139.08,139.03,17.0367]
[1642483626657,7.82915673,139.08,139.04,13.6617]
[1642483626857,5.77968817,139.08,139.04,10.7857]
[1642483629182,5.77968817,139.08,139.04,16.7857]
[1642483630386,26.62976856,139.09,139.04,16.7857]
[1642483632286,24.5803,139.09,139.04,16.7857]
[1642483638893,2.04946856,139.1,139.05,3.126]
[1642483639094,2.04946856,139.1,139.06,10.7841]
[1642483639294,2.04946856,139.1,139.06,16.7841]
[1642483639695,2.04946856,139.1,139.06,10.7841]
[1642483639896,2.04946856,139.1,139.07,0.25]
[1642483640097,2.04946856,139.1,139.08,0.28471177]
[1642483640397,5.77968817,139.09,139.05,8.876]
[1642483640598,5.77968817,139.09,139.06,10.7836]
[1642483640799,5.77968817,139.09,139.06,17.0336]
[1642483641398,49.82174967,139.12,139.07,3.16071177]
[1642483641599,49.82174967,139.12,139.07,11.65171177]
[1642483641798,49.82174967,139.12,139.07,17.65171177]
[1642483642697,49.82174967,139.12,139.08,10.7825]
[1642483642901,49.82174967,139.12,139.08,16.7825]
[1642483643501,2.04946856,139.12,139.08,23.6215]
[1642483645101,50.16748477,139.13,139.08,23.6215]
[1642483651209,4.92546856,139.13,139.08,23.6215]
[1642483651907,4.92546856,139.13,139.09,11.032]
[1642483652108,2.04946856,139.13,139.09,11.032]
[1642483652310,2.04946856,139.13,139.09,17.032]
[1642483653608,28.70536856,139.14,139.09,17.032]
[1642483655309,2.04946856,139.13,139.09,16.782]
[1642483659826,2.04946856,139.13,139.09,10.782]
[1642483660519,2.875,139.12,139.09,10.782]
[1642483661157,5.77968817,139.11,139.09,10.782]
[1642483661455,2.875,139.12,139.1,0.28471177]
[1642483662756,4.92446856,139.13,139.1,0.28471177]
[1642483662955,5.77968817,139.12,139.1,0.28471177]
[1642483663153,3.03219997,139.12,139.1,0.28471177]
[1642483663354,4.92446856,139.13,139.1,0.28471177]
[1642483670658,5.77968817,139.12,139.1,0.28471177]
[1642483670858,5.77968817,139.12,139.06,26.7086]
[1642483671065,5.77968817,139.12,139.07,10.7831]
[1642483671260,5.77968817,139.12,139.07,17.0331]
[1642483671461,5.77968817,139.12,139.07,11.0331]
[1642483671661,5.77968817,139.12,139.06,26.7086]
[1642483671865,8.65468817,139.12,139.06,26.7086]
[1642483672463,10.70415673,139.12,139.06,26.7086]
[1642483672662,7.82915673,139.12,139.06,34.6179]
[1642483677169,7.82915673,139.12,139.06,40.6179]
[1642483679895,7.82915673,139.12,139.07,0.25]
[1642483680096,7.82915673,139.12,139.08,10.7821]
[1642483680394,7.82915673,139.12,139.08,16.7821]
[1642483680599,5.77968817,139.12,139.08,16.7821]
[1642483680793,2.04946856,139.13,139.08,16.7821]
[1642483682197,2.04946856,139.13,139.08,19.6571]
[1642483683396,2.04946856,139.13,139.08,16.7821]
[1642483683997,2.04946856,139.13,139.09,0.25]
[1642483684199,2.04946856,139.13,139.08,16.7821]
[1642483687804,2.04946856,139.13,139.09,0.25]
[1642483688002,2.04946856,139.13,139.08,16.7821]
[1642483691907,2.04946856,139.13,139.09,3.125]
[1642483692307,2.04946856,139.13,139.09,9.125]
[1642483693607,2.04946856,139.13,139.09,8.875]
[1642483693810,2.04946856,139.13,139.09,2.875]
[1642483694108,2.04946856,139.13,139.09,8.875]
[1642483694512,2.04946856,139.13,139.09,16.7822]
[1642483695109,25.83036856,139.14,139.09,16.7822]
[1642483696812,2.04946856,139.13,139.09,16.7822]
[1642483698914,4.92446856,139.13,139.09,16.7822]
[1642483699817,4.92446856,139.13,139.1,0.25]
[1642483700017,5.77968817,139.12,139.1,0.25]
[1642483700817,5.77968817,139.12,139.1,11.0312]
[1642483701217,2.04946856,139.14,139.11,10.51471177]
[1642483701417,2.04946856,139.14,139.11,16.78171177]
[1642483701617,2.04946856,139.14,139.12,0.25]
[1642483701918,2.04946856,139.14,139.12,10.48]
[1642483702418,2.875,139.15,139.12,16.48]
[1642483702618,2.875,139.15,139.12,27.2584]
[1642483703721,2.875,139.15,139.13,2.874]
[1642483703923,2.875,139.15,139.14,10.7781]
[1642483704322,2.875,139.15,139.14,17.31281177]
[1642483704624,2.875,139.15,139.14,23.63481177]
[1642483710230,2.875,139.15,139.14,23.89481177]
[1642483716466,2.874,139.18,139.14,23.89481177]
[1642483716767,2.874,139.18,139.15,0.25]
[1642483716967,2.874,139.18,139.15,11.0273]
[1642483717166,2.874,139.18,139.16,0.28471177]
[1642483718068,2.874,139.18,139.16,11.06131177]
[1642483718268,2.874,139.18,139.16,17.06131177]
[1642483718471,4.92346856,139.19,139.16,6.28471177]
[1642483719469,4.92346856,139.19,139.16,0.28471177]
[1642483719671,4.92346856,139.19,139.16,6.28471177]
[1642483720871,4.92346856,139.19,139.16,0.28471177]
[1642483721072,4.92346856,139.19,139.16,11.06131177]
[1642483721271,2.04946856,139.19,139.17,0.25]
[1642483721473,2.04946856,139.19,139.18,13.103]
[1642483721671,2.04946856,139.19,139.18,13.38771177]
[1642483721872,2.04946856,139.19,139.18,19.63771177]
[1642483722172,2.04946856,139.19,139.18,30.41131177]
[1642483722472,2.04946856,139.23,139.18,30.41131177]
[1642483722675,2.04946856,139.23,139.18,27.79831177]
[1642483722875,2.04946856,139.23,139.19,0.25]
[1642483723073,2.04946856,139.23,139.19,7.457]
[1642483723272,2.04946856,139.23,139.2,10.7718]
[1642483723773,2.04946856,139.24,139.21,0.25]
[1642483723974,2.04946856,139.24,139.22,0.28471177]
[1642483725372,2.04946856,139.24,139.22,6.36671177]
[1642483725574,2.04946856,139.24,139.22,17.13831177]
[1642483725774,2.04946856,139.24,139.22,23.13831177]
[1642483728378,2.04946856,139.24,139.22,17.13831177]
[1642483729680,2.04946856,139.23,139.22,6.36671177]
[1642483729880,2.04946856,139.23,139.22,0.28471177]
[1642483733086,2.04946856,139.24,139.22,0.28471177]
[1642483734685,2.04946856,139.23,139.22,0.28471177]
[1642483735688,7.82915673,139.23,139.21,16.7728]
[1642483735987,2.04946856,139.23,139.22,0.28471177]
[1642483737192,2.04946856,139.24,139.22,0.28471177]
[1642483741117,31.42326876,139.27,139.22,0.28471177]
[1642483741118,2.04946856,139.23,139.22,0.28471177]
[1642483741920,2.04946856,139.24,139.22,0.28471177]
[1642483749927,2.04946856,139.24,139.22,3.15671177]
[1642483751224,2.04946856,139.24,139.22,0.28471177]
[1642483752726,2.04946856,139.23,139.22,0.28471177]
[1642483753825,7.82915673,139.23,139.2,10.23]
[1642483754227,7.82915673,139.23,139.21,0.28471177]
[1642483756631,2.04946856,139.23,139.21,0.28471177]
[1642483759030,2.04946856,139.24,139.21,0.28471177]
[1642483760233,2.04946856,139.24,139.21,0.53471177]
[1642483761136,2.04946856,139.24,139.21,0.28471177]
[1642483763135,2.04946856,139.23,139.21,0.28471177]
[1642483763537,2.04946856,139.23,139.21,11.05741177]
[1642483763938,2.04946856,139.23,139.21,17.05741177]
[1642483764239,2.04946856,139.23,139.21,11.05741177]
[1642483764440,2.04946856,139.24,139.21,11.05741177]
[1642483764842,2.04946856,139.24,139.21,17.05741177]
[1642483765540,2.04946856,139.24,139.22,0.25]
[1642483765745,2.04946856,139.24,139.23,10.7706]
[1642483766142,2.04946856,139.24,139.23,17.0206]
[1642483766342,2.04946856,139.24,139.23,17.30531177]
[1642483766742,2.04946856,139.24,139.23,17.05531177]
[1642483768142,4.92146856,139.26,139.23,17.05531177]
[1642483770042,2.04946856,139.26,139.23,17.05531177]
[1642483770941,4.92146856,139.26,139.23,17.05531177]
[1642483771943,2.04946856,139.26,139.23,17.05531177]
[1642483774544,2.04946856,139.26,139.23,6.28471177]
[1642483774847,5.77968817,139.25,139.23,6.28471177]
[1642483775347,2.04946856,139.26,139.23,6.28471177]
[1642483775546,2.04946856,139.26,139.23,0.28471177]